Cogmind - Beta 16 @@@ ROGUE MODE // 2025.10.26 @ 00:16:44 Player: GolbalwarmingLord Result: Destroyed by G-50 Soldier with Heavy Laser Performance ------------- Evolutions (2) 1000 Regions Visited (5) 1000 Robots Destroyed (41) 205 Value Destroyed (999) 999 Prototype IDs (27) 540 Alien Tech Used (0) 0 Bonus (300) 300 TOTAL SCORE: 4044 Bonus ------- Aligned with FarCom 300 Cogmind --------- Core Integrity 0/550 Matter 300/300 Energy 99/100 System Corruption 1% Temperature Cool (18) Movement Core (50) Location -8/Materials Parts ------- > --- POWER (1) -------- (None) > --- PROPULSION (4) --- (None) > --- UTILITY (4) ------ (None) > --- WEAPON (2) ------- (None) > --- INVENTORY (5) ---- Light Treads Improved Treads Aluminum Leg Large Storage Unit Peak State ------------ > --- POWER ------------ (None) > --- PROPULSION ------- Aluminum Leg Carbon-fiber Leg Improved Carbon-fiber Leg > --- UTILITY ---------- Small Storage Unit Core Shielding > --- WEAPON ----------- Guided Plasma Cannon Flak Gun > --- INVENTORY -------- Ion Engine Light Treads Improved Treads Aluminum Leg Large Storage Unit Assault Rifle Light Assault Rifle Grenade Launcher [Rating: 22] Favorites ----------- Power Ion Engine Engine Ion Engine Power Core Light Nuclear Core Propulsion Aluminum Leg Treads Light Treads Leg Aluminum Leg Utility Small Storage Unit Device Seismic Detector Storage Small Storage Unit Protection Core Shielding Weapon Light Assault Rifle Energy Cannon Guided Plasma Cannon Ballistic Gun Light Assault Rifle Launcher Grenade Launcher Build | -11 -10 -10 -10 -9 -8 ------- Run | Yrd Mat Min Exi Min Mat Slots Evolved 4 | . . . . . 4 Power . | . . . . . . Propulsion 2 | . . . . . 2 Utility 2 | . . . . . 2 Weapon . | . . . . . . Parts Attached 24 | 7 3 7 1 5 1 Power 3 | 1 . 2 . . . Engine 2 | 1 . 1 . . . Core 1 | . . 1 . . . Reactor . | . . . . . . Propulsion 9 | 2 1 1 . 4 1 Treads 2 | . . . . 2 . Leg 7 | 2 1 1 . 2 1 Wheel . | . . . . . . Hover . | . . . . . . Flight . | . . . . . . Utility 4 | 2 1 1 . . . Device 1 | 1 . . . . . Storage 2 | 1 1 . . . . Processor . | . . . . . . Hackware . | . . . . . . Protection 1 | . . 1 . . . Artifact . | . . . . . . Weapon 8 | 2 1 3 1 1 . Energy Gun . | . . . . . . Energy Cannon 1 | . . . 1 . . Ballistic Gun 5 | 2 . 2 . 1 . Ballistic Cannon . | . . . . . . Launcher 2 | . 1 1 . . . Special Weapon . | . . . . . . Impact Weapon . | . . . . . . Slashing Weapon . | . . . . . . Piercing Weapon . | . . . . . . Special Melee Weapon . | . . . . . . Unidentified Prototypes . | . . . . . . Parts Lost 20 | . 2 4 . 2 12 Power 3 | . . 1 . . 2 Propulsion 6 | . 1 1 . 1 3 Utility 3 | . 1 . . . 2 Weapon 8 | . . 2 . 1 5 Highest Loss Streak 11 | . 2 2 . 2 11 To Critical Strikes . | . . . . . . Average Backups 6 | 1 5 6 6 6 7 Power . | . . 1 1 1 . Propulsion 1 | 1 2 2 2 1 3 Utility 1 | . 1 1 1 1 1 Weapon 2 | . . 1 2 3 2 Tool/Special . | . . . . . . Unused Backups 1 | . . . . . 1 Power . | . . . . . . Propulsion 1 | . . . . . 1 Utility . | . . . . . . Weapon . | . . . . . . Tool/Special . | . . . . . . Average Slot Usage (%) 89 | . 96 98 100 85 46 Engine 12 | . 14 12 14 14 4 Treads 7 | . . . . 27 . Leg 19 | . 27 27 28 . 14 Device 2 | . 11 . . . . Storage 13 | . 14 14 14 14 7 Protection 10 | . . 13 14 14 6 Energy Cannon 6 | . . . 8 14 6 Ballistic Gun 13 | . 16 23 19 . 6 Launcher 3 | . 11 3 . . . Peak Build Rating 22 | 7 7 9 14 20 22 Average Rating 10 | 4 6 7 11 13 15 On Entrance 9 | . 7 6 7 14 20 Avg Prop Armor Cover (%) . | . . . . . . Naked Turns 55 | . . . . . 55 Heaviest Build 25 | 14 16 15 22 25 25 Greatest Support 43 | 20 20 20 20 40 43 Greatest Overweight (x) 1 | 1 1 1 1 . 1 Average Overweight (x) . | . . . . . . Largest Inventory Capacity 15 | 8 15 8 8 8 8 Average Capacity 7 | 7 8 8 8 8 7 Most Carried 8 | 4 7 8 7 8 8 Average Carried 6 | 1 5 6 6 6 6 Final Capacity 8 | 8 8 8 8 8 5 Final Carried 8 | 2 6 6 7 8 4 Class Distribution -------------------- 97% | Mutant Dominant Class ---------------- Mutant | -10/Materials Mutant | -10/Mines Mutant | -10/Exiles Mutant | -9/Mines Mutant | -8/Materials Resources | -11 -10 -10 -10 -9 -8 ----------- Run | Yrd Mat Min Exi Min Mat Matter Collected 814 | 283 110 217 . 53 151 Remotely . | . . . . . . Salvage Created 1264 | 111 287 238 . 120 508 Parts 72 | 7 28 13 . 10 14 Haulers Intercepted . | . . . . . . Recyclers Shooed 3 | 1 2 . . . . Parts Field Recycled . | . . . . . . Retrieved Matter . | . . . . . . Parts Self-Destructed . | . . . . . . Prevented . | . . . . . . Parts Restored . | . . . . . . Kills | -11 -10 -10 -10 -9 -8 ------- Run | Yrd Mat Min Exi Min Mat Combat Hostiles Destroyed 38 | . 12 11 . 6 9 Guns 16 | . 4 11 . . 1 Cannons 13 | . . . . 6 7 AOE 9 | . 8 . . . 1 Classes Destroyed 9 | 2 4 1 . . 2 Worker 1 | . 1 . . . . Builder 1 | . 1 . . . . Tunneler 1 | 1 . . . . . Recycler 3 | 1 . 1 . . 1 Operator 1 | . . . . . 1 Swarmer 15 | . 6 5 . 4 . Grunt 18 | . 6 2 . 2 8 Duelist 1 | . . . . . 1 Assembled 4 | . . 4 . . . Best Kill Streak 12 | 2 12 3 . 4 11 Combat Bots Only 10 | . 10 3 . 4 9 Max Kills in Single Turn 3 | 1 3 1 . 1 1 Gunslinging . | . . . . . . Exploded 3 | . 3 . . . 1 Melee . | . . . . . . Uniques/NPCs Destroyed . | . . . . . . Combat | -11 -10 -10 -10 -9 -8 -------- Run | Yrd Mat Min Exi Min Mat Hostile Shots Fired 241 | . 44 66 . 18 113 Missed 60 | . 12 18 . 3 27 Hits 181 | . 32 48 . 15 86 Melee 6 | . . 5 . . 1 Projectile 175 | . 32 43 . 15 85 Critical Strikes 8 | . . 2 . . 6 Actively Blocked 1 | . . 1 . . . Damage Taken 2488 | . 324 591 . 137 1436 Core 753 | . 69 103 . 24 557 Absorbed by Shields . | . . . . . . Redirected to Shielding 52 | . . 15 . 4 33 Core Remaining (%) 60 | 100 . . . 21 . Volleys Fired 132 | 5 21 57 . 13 36 Largest 2 | 2 2 2 . 1 1 Hottest 120 | 40 50 40 . 120 120 Shots Fired 171 | 10 26 86 . 13 36 Gun 137 | 10 21 86 . . 20 Cannon 27 | . . . . 13 14 Launcher 7 | . 5 . . . 2 Special . | . . . . . . Kinetic 137 | 10 21 86 . . 20 Thermal 27 | . . . . 13 14 Explosive 7 | . 5 . . . 2 Electromagnetic . | . . . . . . Robot Hit Streak 17 | 5 9 8 . 10 17 Robot Miss Streak 6 | 1 1 3 . . 6 Penetration Max . | . . . . . . Secondary Targets 1 | . . 1 . . . Max Gunslinging Chain 1 | . . 1 . . . Shots Hit Robots 121 | 7 15 57 . 9 33 Core Hits 92 | 3 22 26 . 7 34 Critical Kills . | . . . . . . Critical Parts Destroyed 1 | . 1 . . . . Critical Strikes 1 | . 1 . . . . Destroy 1 | . 1 . . . . Melee Attacks . | . . . . . . Impact . | . . . . . . Slashing . | . . . . . . Piercing . | . . . . . . Sneak Attacks . | . . . . . . Combat Hostiles . | . . . . . . Follow-up Attacks . | . . . . . . Damage Inflicted 2782 | 74 825 492 . 344 1047 Guns 1129 | 69 237 484 . . 339 Cannons 808 | . . . . 327 481 Explosions 795 | . 583 . . . 212 Melee . | . . . . . . Ramming 50 | 5 5 8 . 17 15 Kinetic 1129 | 69 237 484 . . 339 Thermal 808 | . . . . 327 481 Explosive 795 | . 583 . . . 212 Electromagnetic . | . . . . . . Impact . | . . . . . . Slashing . | . . . . . . Piercing . | . . . . . . Highest Corruption 3 | . . 3 3 3 1 Average Corruption 2 | . . 3 3 3 1 Corruption Purged . | . . . . . . Corruption Blocked . | . . . . . . Effects 19 | . . 2 5 12 . Message Errors 5 | . . 1 . 4 . Matter Fused 3 | . . 1 . 2 . Heat Flow Errors 4 | . . . 1 3 . Energy Discharges 1 | . . . . 1 . Parts Fused 1 | . . . 1 . . Data Loss (minor) 2 | . . . 1 1 . Data Loss (major) 2 | . . . 1 1 . Alerts 1 | . . . 1 . . Overload Shots . | . . . . . . Overflow Damage 49 | . 34 . . 15 . Projectiles 15 | . . . . 15 . Explosions 34 | . 34 . . . . Melee . | . . . . . . Knockbacks . | . . . . . . Impact . | . . . . . . Kinetic . | . . . . . . Secondary . | . . . . . . Self-Inflicted Damage 3 | . . . . . 3 Shots . | . . . . . . Rammed 4 | . . . . 2 2 Targets Rammed 14 | 1 3 4 . 2 4 Kicked 10 | 1 3 4 . . 2 Crushed . | . . . . . . Highest Temperature 480 | . . 36 247 480 445 Average Temperature 133 | . . 12 142 147 165 Received Heat Transfer 1095 | . 87 129 . 24 855 Effects 4 | . . . . 4 . Shutdowns 1 | . . . . 1 . Energy Bleed 1 | . . . . 1 . Interference 1 | . . . . 1 . Matter Decay 1 | . . . . 1 . Siege Activations . | . . . . . . Martial Activations . | . . . . . . Shielding Activations . | . . . . . . Robots Disrupted . | . . . . . . Combat Hostiles . | . . . . . . Robots Corrupted . | . . . . . . Combat Hostiles . | . . . . . . Parts Fried 1 | . . 1 . . . Impact Corruptions . | . . . . . . Robots Melted . | . . . . . . Combat Hostiles . | . . . . . . Parts Melted 2 | . . . . 1 1 Heat Transferred 1840 | . . . . 720 1120 Parts Sabotaged . | . . . . . . Parts Stolen . | . . . . . . Parts Stripped . | . . . . . . Power Chain Reactions . | . . . . . . Alert | -11 -10 -10 -10 -9 -8 ------- Run | Yrd Mat Min Exi Min Mat Maximum Alert Level 1 | . 1 . . . . Low Security (%) 95 | 100 77 100 . 100 100 Level 1 4 | . 22 . . . . Level 2 . | . . . . . . Level 3 . | . . . . . . Level 4 . | . . . . . . Level 5 . | . . . . . . High Security . | . . . . . . Max Security . | . . . . . . Peak Influence 251 | 10 251 148 . 70 165 Initial 88 | . . 88 . . 13 Average 31 | . 58 35 . 8 44 Influence Increases 1000 | 10 315 165 . 155 355 Destroy 0b10 Robot/C 680 | . 240 140 . 120 180 Destroy 0b10 Robot/NC 35 | 10 10 5 . . 10 Destroy Leader 110 | . 40 20 . 20 30 Disable Machine 15 | . . . . 15 . Destroy Structure 25 | . 10 . . . 15 Partial Spotted 30 | . . . . . 30 Lose Combat Pursuer 105 | . 15 . . . 90 Influence Decreases 845 | 10 88 392 . 121 234 Entered New Map 160 | . . 139 . . 21 Time Decay 502 | 10 68 230 . 101 93 Lost Part 183 | . 20 23 . 20 120 Squads Dispatched 5 | . 1 . . 1 3 Investigation 1 | . . . . 1 . Extermination . | . . . . . . Reinforcement 4 | . 1 . . . 3 Assault . | . . . . . . Garrison . | . . . . . . Intercept . | . . . . . . Searches Triggered . | . . . . . . Construction Impeded . | . . . . . . Haulers Reinforced . | . . . . . . Active Scanning Responses . | . . . . . . Cargo Convoy Interrupts . | . . . . . . Stealth | -11 -10 -10 -10 -9 -8 --------- Run | Yrd Mat Min Exi Min Mat Distress Signals 5 | . 1 2 . . 2 Communications Jammed . | . . . . . . Distress Signals . | . . . . . . Times Spotted 65 | . 19 11 . 6 29 Peak Tracking Total 12 | . 7 2 . 3 12 Tactical Retreats 2 | . 1 . . . 1 Traps | -11 -10 -10 -10 -9 -8 ------- Run | Yrd Mat Min Exi Min Mat Traps Triggered . | . . . . . . Indirectly . | . . . . . . Trap Hack Attempts . | . . . . . . Triggered . | . . . . . . Disarmed . | . . . . . . Reprogrammed . | . . . . . . Reused . | . . . . . . Traps Extracted . | . . . . . . Installed . | . . . . . . Triggered . | . . . . . . Machines | -11 -10 -10 -10 -9 -8 ---------- Run | Yrd Mat Min Exi Min Mat Machines Disabled 1 | . . . . 1 . Max in Single Turn 1 | . . . . 1 . Machines Repaired . | . . . . . . Machines Dismantled . | . . . . . . Machines Sabotaged . | . . . . . . Overloaded Fab Kills . | . . . . . . Hacking | -11 -10 -10 -10 -9 -8 --------- Run | Yrd Mat Min Exi Min Mat Machines Accessed 6 | . 1 1 1 2 1 Terminals 3 | . 1 . . 1 1 Fabricators . | . . . . . . Repair Stations . | . . . . . . Recycling Units . | . . . . . . Scanalyzers . | . . . . . . Garrison Access . | . . . . . . Total Hacks 7 | . 1 1 1 3 1 Successful 7 | . 1 1 1 3 1 Failed . | . . . . . . Catastrophic . | . . . . . . Database Lockouts . | . . . . . . Manual 1 | . . . 1 . . Terminals 4 | . 1 . . 2 1 Fabricators . | . . . . . . Repair Stations . | . . . . . . Recycling Units . | . . . . . . Scanalyzers . | . . . . . . Garrison Access . | . . . . . . Terminal Hacks 7 | . 1 1 1 3 1 Prototype ID Bank 2 | . 1 . . . 1 Open Door 2 | . . 1 . 1 . Alert Level 1 | . . . . 1 . Zone Layout 1 | . . . . 1 . Proto ID Catalog 1 | . . . 1 . . Fabricator Hacks . | . . . . . . Repair Station Hacks . | . . . . . . Recycling Unit Hacks . | . . . . . . Scanalyzer . | . . . . . . Garrison Access Hacks . | . . . . . . Unauthorized Hacks . | . . . . . . Terminals . | . . . . . . Fabricators . | . . . . . . Repair Stations . | . . . . . . Recycling Units . | . . . . . . Scanalyzers . | . . . . . . Garrison Access . | . . . . . . Data Cores Recovered . | . . . . . . Used . | . . . . . . Hacking Detections 1 | . . . . 1 . Full Trace Events . | . . . . . . Feedback Events . | . . . . . . Feedback Blocked . | . . . . . . Robot Schematics Acquired . | . . . . . . Robots Built . | . . . . . . Authchips . | . . . . . . Time . | . . . . . . Total Robot Build Rating . | . . . . . . Part Schematics Acquired . | . . . . . . Parts Built . | . . . . . . Authchips . | . . . . . . Time . | . . . . . . Total Part Build Rating . | . . . . . . Part Studies Acquired . | . . . . . . Parts Repaired . | . . . . . . Time . | . . . . . . Parts Recycled . | . . . . . . Recycled Matter . | . . . . . . Retrieved Matter . | . . . . . . Retrieved Components . | . . . . . . Parts Scanalyzed . | . . . . . . Part Schematics Acquired . | . . . . . . Parts Damaged . | . . . . . . Bothacking | -11 -10 -10 -10 -9 -8 ------------ Run | Yrd Mat Min Exi Min Mat Used RIF Installer . | . . . . . . Robots Hacked . | . . . . . . Non-combat . | . . . . . . Combat . | . . . . . . Robot Hacks Applied . | . . . . . . Relay Couplers Released . | . . . . . . Fabnet Peak Effective % . | . . . . . . Robots Rewired . | . . . . . . Allies Hacked . | . . . . . . Hacks Repelled . | . . . . . . Allies | -11 -10 -10 -10 -9 -8 -------- Run | Yrd Mat Min Exi Min Mat Total Allies . | . . . . . . Largest Group . | . . . . . . Highest-Rated Group . | . . . . . . Highest-Rated Ally . | . . . . . . Total Orders . | . . . . . . Ally Attacks . | . . . . . . Total Damage . | . . . . . . Kills . | . . . . . . Allies Corrupted . | . . . . . . Allies Melted . | . . . . . . Intel | -11 -10 -10 -10 -9 -8 ------- Run | Yrd Mat Min Exi Min Mat Active Infowar (turns) 449 | 16 433 . . . . Seismic 449 | 16 433 . . . . Robot Analysis Total . | . . . . . . Derelict Logs Recovered 3 | . . 1 . 2 . Drone Launches . | . . . . . . Drone Recoveries . | . . . . . . Exploration | -11 -10 -10 -10 -9 -8 ------------- Run | Yrd Mat Min Exi Min Mat Turns Passed 3000 | 100 509 757 576 756 302 Spaces Moved 1934 | 68 363 499 368 449 187 Core 129 | 22 . . . . 107 Treads 444 | . . . . 444 . Legs 1361 | 46 363 499 368 5 80 Wheels . | . . . . . . Hover . | . . . . . . Flight . | . . . . . . Fastest Speed 50 | 50 120 120 120 120 50 Average Speed 131 | 103 121 120 155 159 80 Slowest Speed 190 | 120 190 190 190 160 120 Overloaded Moves . | . . . . . . Propulsion Burnouts . | . . . . . . Robots Hopped . | . . . . . . Potential Cave-ins . | . . . . . . Cave-ins Triggered . | . . . . . . Exploration Rate (%) 44 | 5 49 77 52 63 19 Regions Visited 5 Branch Regions 3 Pre-discovered Areas 2 | . . . . 2 . Known Exits Taken . | . . . . . . Unknown Exits Taken 5 | 1 1 1 1 1 . Scrap Searched 2 | . . 1 . 1 . Spaces Dug . | . . . . . . Terrain Destroyed 31 | . 17 . . . 14 Melee . | . . . . . . Projectile . | . . . . . . AOE 31 | . 17 . . . 14 Terrain Rammed . | . . . . . . Walls Destroyed . | . . . . . . Machines Disabled . | . . . . . . Actions | -11 -10 -10 -10 -9 -8 --------- Run | Yrd Mat Min Exi Min Mat Total 2220 | 86 406 582 371 472 303 Wait 86 | . 9 8 . . 69 Move 1930 | 68 362 498 367 448 187 Hop . | . . . . . . Pick Up 21 | 6 5 5 1 3 1 Fast Attach 4 | 3 . . . . 1 Attach 18 | 4 3 5 . 2 4 Detach 2 | . 2 . . . . Swap 11 | . 1 5 1 4 . Drop 1 | . . . . . 1 Fire 132 | 5 21 57 . 13 36 Melee . | . . . . . . Ram 2 | . . . . . 2 Kick 9 | . 3 4 . . 2 Crush 2 | . . . . 2 . Escape Stasis . | . . . . . . Rewire 2 | . . . 2 . . Trap . | . . . . . . Miscellaneous . | . . . . . . Route ------- -11/Scrapyard -10/Materials (discovered 2 exits: [*Mat] / *Min) -10/Mines (discovered 2 exits: [*Mat] / *Exi) -10/Exiles -9/Mines (discovered 2 exits: *Mat x2) -8/Materials History --------- Turn | Location | Event 4 | -11/Scrapyard | Discovered new exit (range 16) 101 | -11/Scrapyard | Entered Materials 314 | -10/Materials | Build established: Mutant 516 | -10/Materials | Destroyed 10 combat bots 563 | -10/Materials | Discovered new exit (range 15) 599 | -10/Materials | Discovered new exit (range 7) 610 | -10/Materials | Entered Mines 612 | -10/Mines | Met a Derelict bent on vengeance 674 | -10/Mines | Assembled infested the area 771 | -10/Mines | Met a Derelict who couldn't figure out how to use a Trap Extractor 923 | -10/Mines | Core integrity fell below 50% 1059 | -10/Mines | Found DCF Scrap (11 items) 1077 | -10/Mines | Discovered new exit (range 15) 1117 | -10/Mines | Learned Materials stockpile data 1359 | -10/Mines | Deemed a non-threat by the Exiles lab entrance 1360 | -10/Mines | Discovered new exit (range 5) 1367 | -10/Mines | Entered Exiles 1397 | -10/Exiles | Discovered new exit (range 15) 1412 | -10/Exiles | Met 8R-AWN 1435 | -10/Exiles | Met EX-HEX 1489 | -10/Exiles | Met EX-BIN 1514 | -10/Exiles | Aligned with FarCom system 1515 | -10/Exiles | Given EX-Vault access code 1556 | -10/Exiles | Opened EX-Vault 1576 | -10/Exiles | Found Gui. Plasma Cannon 1616 | -10/Exiles | Warned to stay clear of 0b10 Research branches 1686 | -10/Exiles | Met EX-DEC 1943 | -10/Exiles | Left Exiles lab with Gui. Plasma Cannon 1943 | -10/Exiles | Entered Mines 2305 | -9/Mines | Learned location of Storage (-7) 2628 | -9/Mines | Discovered new exit (range 13) 2632 | -9/Mines | Discovered new exit (range 7) 2638 | -9/Mines | Learned Materials terminal intel 2655 | -9/Mines | Met a Derelict shopkeep closing up shop 2699 | -9/Mines | Entered Materials 2699 | -8/Materials | Evolved 4 slots: Propulsion x2, Utility x2 2701 | -8/Materials | Loaded intel: 12 terminal locations 2937 | -8/Materials | Core integrity fell below 50% 2951 | -8/Materials | Destroyed 9 combat bots 2977 | -8/Materials | Lost 11 parts (1p3n2u5w) 2994 | -8/Materials | Core integrity fell below 20% 3001 | -8/Materials | Destroyed by G-50 Soldier with Heavy Laser Last Messages --------------- Assault Rifle destroyed. Critical hit (Burn: +37). Imp. Carbon-fiber Leg destroyed. K-01 Serf collects debris. Critical hit (Burn: +37). Lgt. Assault Rifle destroyed. Acquired 11 matter. Slammed into G-50 Soldier. Sml. Storage Unit destroyed. System corrupted by crushing effect (+1). R-06 Scavenger collects Imp. Heat Sink. K-01 Serf collects debris. Slammed into G-50 Soldier. K-01 Serf collects debris. ALERT: Hostiles spotted, dispatching reinforcements to Terminal M001. ALERT: Suspicious intruders detected, dispatching Cutter reinforcements to area. [Achievement: Heavy Suspicion] Critical hit (Burn: +37). Map ----- +----------------------------------------------------+ | ?????????????????????????????????????????????????? | | ?????????????????????????????????????????????????? | | ?????????????????????????????????????????????????? | | ?????????????????????????????????????????????????? | | ?????????????????????????????????????????????????? | | ?????????????????????????????????????????????????? | | ?????????????????????????????????????????????????? | | ??????????????????????????????????????? ????????" | | ??????????????????????????????????????? ??? T | | ??????????????????????????????????????# ? " | | ??????????????????????????????????????# "?" # | | ??????????????????????????????????##### """ # | | ??????????????????????????????????#"""# """ # | | ??????????????????????#############"Y"# # | | ??????????????????????# # | | ??????????????????????# ! """ # | | ??????????????????????# """ """ """ # | | ????????""????????????# """ """ """ # | | #???????"T????????????# """ """ # | | ???????""?????????????# # | | ? ?????????????######### # | | ?? ????????????# # a !!* | | ??# ???????????# = + !!* | | ??# ??????????# !! # g !!* | | ??# ?????????# !! * # Yg! ! | | ??# ################## @g###### | | ??# g g #????# ############# | | ??# #????# #???????????# | | ??# #????# #???????????# | | ??#################### ###????# #?????????? / | | ?????????????????????# #??????#+#????????? # | | ?????????????????????# #????????g???????? # | | ?????????????????????# #????????????????###?# | | ?????????????????????# #???????????????=????# | | ?????????????????????# #????????????????????# | | ?????????????????????# #????????????????????# | | ?????????????????????# #????????????????????+ | | ?????????????????????# #######+?????????????# | | ?????????????????????# #??????# | | ?????????????????????# #?????????? | | ?????????????????????# #?????????? | | ?????????????????????######## ??????????? | | ?????????????????????????????? ??????????? | | ??????????????????????????????? ???????????? | | ???????????????????????????????? ???????????? | | ????????????????????????????????? ???????????? | | ?????????????????????????????????? ????????????? | | ???????????????????????????????????"?????????????? | | ?????????????????????????????????????????????????? | | ?????????????????????????????????????????????????? | +----------------------------------------------------+ Best States ------------- Heat Dissipation 31 Energy Generation 14 Energy Capacity 250 Matter Stores 300 Matter Capacity 300 Sight Range 16 Terrain Scan Density 10 Core Shielding 20 Evasion (%) 55 Recoil Reduction 2 Item Schematics ----------------- None Robot Schematics ------------------ None Fabricated ------------ Nothing Repaired ---------- Nothing Studied --------- None Alien Tech Used ----------------- None Achievements -------------- Heavy Suspicion That Tickles Challenges ------------ None Game ------ Seed DefenseMetafieldMapper Manual? 0 Play Time 00:20:57 Cumulative 13.5 hours Start 2025.10.25 @ 16:23:44 End 2025.10.26 @ 00:16:44 Sessions 6 Manual Loads 0 Difficulty Rogue Special Mode None Game No. 24 Rogue 16 Adventurer 8 Explorer 0 Win Type - Total 0 Types 0/0/0/0/0/0/0/0/0/0 Lore% 9 Gallery% 16 Achievement% 14 Wizard Run 0 Options --------- Layout 1 ASCII 0 Keyboard 0 Movement Arrows Keybinds 0 Fullscreen 1 Font 24/Smallcaps Map View 50x40 Zoom Use 0% Tactical HUD 0 Map Filters NONE Filters NONE Steam 1 RUN: 310a6b23-aec5-4af4-8dff-f694c9ecaeca